bitfinex/quotes_BTCUSD_20240717
["timestamp","ask_amount","ask_price","bid_price","bid_amount"]
[1721180852170,0.771495,66007.0,66006.0,0.00053697]
[1721180852614,0.775495,66007.0,66006.0,0.00053697]
[1721180852990,0.757495,66007.0,66006.0,0.00053697]
[1721180853203,0.762495,66007.0,66006.0,0.00053697]
[1721180853399,0.770495,66007.0,66006.0,0.00053697]
[1721180853602,0.92487674,66007.0,66006.0,0.00053697]
[1721180854029,1.22787474,66007.0,66006.0,0.00053697]
[1721180854229,1.87344837,66007.0,66006.0,0.00053697]
[1721180854493,1.86309182,66007.0,66006.0,0.00053697]
[1721180854689,1.85509182,66007.0,66006.0,0.00053697]
[1721180855025,1.80809182,66007.0,66006.0,0.00053697]
[1721180855229,1.81309182,66007.0,66006.0,0.00053697]
[1721180855683,1.85809182,66007.0,66006.0,0.00053697]
[1721180856012,1.92603895,66007.0,66006.0,0.00053697]
[1721180856214,2.29773756,66007.0,66006.0,0.00053697]
[1721180856420,1.716453,65999.0,65996.0,0.000924]
[1721180856619,2.21311158,65999.0,65996.0,0.000924]
[1721180856853,0.05831908,65999.0,65998.0,0.140701]
[1721180857022,0.027,66007.0,65998.0,0.140701]
[1721180857226,0.303009,66005.0,65999.0,0.000924]
[1721180857428,0.151513,66001.0,65999.0,0.000924]
[1721180857629,0.01384,66007.0,65999.0,0.000924]
[1721180857630,0.00277097,66000.0,65999.0,0.07809879]
[1721180857834,0.151506,66004.0,65999.0,0.07809879]
[1721180858250,0.30384,66007.0,65999.0,0.07809879]
[1721180858251,0.00277097,66003.0,65999.0,0.07809879]
[1721180858608,0.00277097,66004.0,65999.0,0.07809879]
[1721180858724,0.00277097,66004.0,65999.0,0.000924]
[1721180858926,0.00277097,66005.0,65999.0,0.000924]
[1721180859136,0.009,66004.0,65999.0,0.000924]
[1721180859356,0.00277097,66004.0,65999.0,0.000924]
[1721180859744,0.008,66003.0,65999.0,0.000924]
[1721180859858,0.00277097,66002.0,65999.0,0.000924]
[1721180860059,0.00277097,66003.0,65999.0,0.000924]
[1721180860364,0.006,66004.0,65999.0,0.000924]
[1721180860568,0.00277097,66003.0,65999.0,0.000924]
[1721180861184,0.004,66003.0,65999.0,0.000924]
[1721180861810,0.30303,66000.0,65999.0,0.000924]
[1721180861984,0.454545,66000.0,65999.0,0.000924]
[1721180863220,0.758575,66000.0,65999.0,0.000924]
[1721180863637,0.91295674,66000.0,65999.0,0.000924]
[1721180863967,1.37548674,66000.0,65999.0,0.000924]
[1721180864168,1.37448674,66000.0,65999.0,0.000924]
[1721180864720,1.38048674,66000.0,65999.0,0.000924]
[1721180865064,1.38348674,66000.0,65999.0,0.000924]
[1721180865267,1.38048674,66000.0,65999.0,0.000924]
[1721180865468,1.86327874,66000.0,65999.0,0.000924]
[1721180865724,1.93122367,66000.0,65999.0,0.000924]
[1721180865932,1.86327874,66000.0,65999.0,0.000924]
[1721180866131,1.94789521,66000.0,65999.0,0.000924]
[1721180866425,1.90089521,66000.0,65999.0,0.000924]
[1721180866990,1.81027874,66000.0,65999.0,0.000924]
[1721180867190,1.82427874,66000.0,65999.0,0.000924]
[1721180867342,1.50615295,66000.0,65999.0,0.000924]
[1721180867540,1.46084874,66000.0,65999.0,0.000924]
[1721180867982,1.44684874,66000.0,65999.0,0.000924]
[1721180868367,1.46084874,66000.0,65999.0,0.000924]
[1721180868863,1.30134874,66000.0,65999.0,0.000924]
[1721180869065,1.27334874,66000.0,65999.0,0.000924]
[1721180869265,1.28734874,66000.0,65999.0,0.000924]
[1721180869446,1.30134874,66000.0,65999.0,0.000924]
[1721180869646,1.28734874,66000.0,65999.0,0.000924]
[1721180869897,1.27334874,66000.0,65999.0,0.000924]
[1721180870082,1.43284874,66000.0,65999.0,0.000924]
[1721180870275,1.44684874,66000.0,65999.0,0.000924]
[1721180871007,1.46084874,66000.0,65999.0,0.000924]
[1721180871248,1.89567874,66000.0,65999.0,0.000924]
[1721180871447,1.95208314,66000.0,65999.0,0.000924]
[1721180871618,1.97473833,66000.0,65999.0,0.000924]
[1721180871795,2.0247377,66000.0,65999.0,0.000924]
[1721180871998,2.04739521,66000.0,65999.0,0.000924]
[1721180872416,2.01939317,66000.0,65999.0,0.000924]
[1721180872958,2.04739317,66000.0,65999.0,0.000924]
[1721180873351,2.03339317,66000.0,65999.0,0.000924]
[1721180873551,2.18774274,66000.0,65999.0,0.000924]
[1721180873758,2.20174274,66000.0,65999.0,0.000924]
[1721180873967,2.04739317,66000.0,65999.0,0.000924]
[1721180874161,2.03339317,66000.0,65999.0,0.000924]
[1721180874625,2.04739317,66000.0,65999.0,0.000924]
[1721180875176,1.99739317,66000.0,65999.0,0.000924]
[1721180875378,1.85449317,66000.0,65999.0,0.000924]
[1721180875582,1.76387874,66000.0,65999.0,0.000924]
[1721180875995,1.80918502,66000.0,65999.0,0.000924]
[1721180876824,1.76387874,66000.0,65999.0,0.000924]
[1721180877187,1.81387874,66000.0,65999.0,0.000924]
[1721180877428,1.76387874,66000.0,65999.0,0.000924]
[1721180878632,1.81387874,66000.0,65999.0,0.000924]
[1721180879653,0.311026,65995.0,65994.0,0.001045]
[1721180879861,0.52376974,65995.0,65994.0,0.001045]
[1721180880605,1.43292874,65995.0,65994.0,0.001045]
[1721180880989,1.667193,65979.0,65969.0,0.009196]
[1721180881186,2.14641074,65979.0,65963.0,0.009207]
[1721180881409,2.10309209,65979.0,65963.0,0.009207]
[1721180881521,2.08511074,65979.0,65963.0,0.009207]
[1721180881971,2.16253369,65979.0,65963.0,0.009207]
[1721180882355,2.08511074,65979.0,65963.0,0.009207]
[1721180882750,2.09911074,65979.0,65963.0,0.009207]
[1721180882955,2.11311074,65979.0,65963.0,0.009207]
[1721180883185,2.09911074,65979.0,65963.0,0.009207]
[1721180883354,2.55202944,65979.0,65963.0,0.009207]
[1721180883562,1.364377,65964.0,65963.0,0.009207]
[1721180883769,2.32335374,65964.0,65963.0,0.009207]
[1721180883967,2.43189512,65964.0,65963.0,0.009207]
[1721180884168,2.44134009,65964.0,65963.0,0.009207]
[1721180884378,2.48189512,65964.0,65963.0,0.009207]
[1721180885169,2.12870012,65964.0,65963.0,0.009207]
[1721180885393,2.14270012,65964.0,65963.0,0.009207]
[1721180886531,1.86815874,65964.0,65963.0,0.009207]
[1721180886938,1.79225874,65964.0,65963.0,0.009207]
[1721180887372,1.85625874,65964.0,65963.0,0.009207]
[1721180889347,1.80625874,65964.0,65963.0,0.009207]
[1721180889663,2.30922053,65964.0,65963.0,0.009207]
[1721180889884,2.30085374,65964.0,65963.0,0.009207]
[1721180890020,1.99765874,65964.0,65963.0,0.009207]
[1721180890225,2.30085374,65964.0,65963.0,0.009207]
[1721180890421,1.99765874,65964.0,65963.0,0.009207]
[1721180890624,2.15200831,65964.0,65963.0,0.009207]
[1721180890859,1.99765874,65964.0,65963.0,0.009207]
[1721180892836,1.98365874,65964.0,65963.0,0.009207]
[1721180893244,1.79225874,65964.0,65963.0,0.009207]
[1721180893457,1.84225874,65964.0,65963.0,0.009207]
[1721180893627,1.85625874,65964.0,65963.0,0.009207]
[1721180893971,2.29980331,65964.0,65963.0,0.009207]
[1721180894300,2.01060831,65964.0,65963.0,0.009207]
[1721180894426,1.85625874,65964.0,65963.0,0.009207]
[1721180894627,2.24115374,65964.0,65963.0,0.009207]
[1721180895803,2.21315374,65964.0,65963.0,0.009207]
[1721180896108,2.29971066,65964.0,65963.0,0.009207]
[1721180896234,2.34801066,65964.0,65963.0,0.009207]
[1721180896435,2.51636023,65964.0,65963.0,0.009207]
[1721180897219,2.50236023,65964.0,65963.0,0.009207]
[1721180897423,2.48836023,65964.0,65963.0,0.009207]
[1721180897825,2.50236023,65964.0,65963.0,0.009207]
[1721180898367,2.52536023,65964.0,65963.0,1e-06]
[1721180898844,2.53936023,65964.0,65963.0,1e-06]
[1721180899051,2.84255523,65964.0,65963.0,1e-06]
[1721180899222,2.82855523,65964.0,65963.0,1e-06]
[1721180899822,2.81455523,65964.0,65963.0,1e-06]
[1721180900124,2.84255523,65964.0,65963.0,1e-06]
[1721180900302,2.82855523,65964.0,65963.0,1e-06]
[1721180900622,2.81455523,65964.0,65963.0,1e-06]
[1721180900783,2.84255523,65964.0,65963.0,1e-06]
[1721180901392,2.53936023,65964.0,65963.0,1e-06]
[1721180901791,2.51636023,65964.0,65963.0,1e-06]
[1721180902207,1.91481566,65964.0,65963.0,1e-06]
[1721180902834,1.90081566,65964.0,65963.0,1e-06]
[1721180903048,1.88681566,65964.0,65963.0,1e-06]
[1721180903209,1.90081566,65964.0,65963.0,1e-06]
[1721180903409,1.91481566,65964.0,65963.0,1e-06]
[1721180903837,1.85625874,65964.0,65963.0,1e-06]
[1721180904447,1.91481293,65964.0,65963.0,1e-06]
[1721180905189,2.21800793,65964.0,65963.0,1e-06]
[1721180905405,0.306,65933.0,65921.0,0.46304871]
[1721180905609,1.492383,65933.0,65921.0,0.46304871]
[1721180905822,1.332883,65933.0,65932.0,0.071418]
[1721180906022,0.917845,65933.0,65932.0,0.071418]
[1721180906343,1.221183,65933.0,65932.0,0.071418]
[1721180906583,1.271183,65933.0,65932.0,0.009218]
[1721180906989,1.574521,65933.0,65932.0,0.009218]
[1721180907198,1.428383,65933.0,65932.0,0.009218]
[1721180907352,1.87638794,65933.0,65932.0,0.009218]
[1721180907561,1.87638794,65933.0,65932.0,1e-06]
[1721180907562,2.21672594,65933.0,65932.0,1e-06]
[1721180907771,2.23072594,65933.0,65932.0,1e-06]
[1721180908204,2.23072594,65933.0,65912.0,0.009207]
[1721180908205,1.877958,65929.0,65912.0,0.009207]
[1721180908405,1.977958,65929.0,65912.0,0.009207]
[1721180908629,0.455145,65913.0,65912.0,0.009207]
[1721180908851,1.279305,65913.0,65912.0,0.009207]
[1721180909403,0.455145,65913.0,65912.0,0.009207]
[1721180909513,0.455145,65913.0,65912.0,0.156707]
[1721180909723,0.758575,65913.0,65912.0,0.156707]
[1721180909946,0.772575,65913.0,65912.0,0.16174168]
[1721180910731,0.781575,65913.0,65912.0,0.156707]
[1721180910922,0.758575,65913.0,65912.0,0.156707]
[1721180911125,0.772575,65913.0,65912.0,0.156707]
[1721180911915,0.014,65913.0,65912.0,0.156707]
[1721180912161,0.014,65913.0,65912.0,0.16180533]
[1721180912371,0.025,65913.0,65912.0,0.16180533]
[1721180912514,0.011,65913.0,65912.0,0.16180533]
[1721180912875,0.013,65913.0,65912.0,0.16180533]
[1721180913216,0.022,65913.0,65912.0,0.16180533]
[1721180913360,0.151711,65915.0,65912.0,0.16180533]
[1721180913562,0.007,65913.0,65912.0,0.16180533]
[1721180914346,0.002,65913.0,65912.0,0.16180533]
[1721180915590,0.15171,65915.0,65912.0,0.16180533]
[1721180915795,0.15571,65915.0,65912.0,0.16180533]
[1721180916224,0.15171,65915.0,65912.0,0.16180533]
[1721180916515,0.002,65913.0,65912.0,0.16180533]
[1721180916720,0.15871,65915.0,65912.0,0.16180533]
[1721180916844,0.30343,65913.0,65912.0,0.16180533]
[1721180917107,0.455145,65913.0,65912.0,0.156707]
[1721180917308,0.91295674,65913.0,65912.0,0.16179564]
[1721180917514,1.21638674,65913.0,65912.0,0.156707]
[1721180917960,0.763575,65913.0,65912.0,0.156707]
[1721180919169,0.460145,65913.0,65912.0,0.156707]
[1721180919370,0.462145,65913.0,65912.0,0.156707]
[1721180919597,0.002,65913.0,65912.0,0.156707]
[1721180919982,0.002,65913.0,65912.0,0.16179926]
[1721180920182,0.151708,65916.0,65912.0,0.16179926]
[1721180920352,0.008,65913.0,65912.0,0.16179926]
[1721180920532,0.012,65913.0,65912.0,0.16179926]
[1721180920958,0.151703,65918.0,65912.0,0.16179926]
[1721180921276,0.303402,65920.0,65912.0,0.16179926]
[1721180921277,0.151705,65917.0,65914.0,0.07717479]
[1721180921457,0.303404,65919.0,65914.0,0.07717479]
[1721180921663,0.151704,65918.0,65915.0,0.00507696]
[1721180921864,0.303375,65925.0,65915.0,0.00507696]
[1721180922063,0.151707,65917.0,65912.0,0.156707]
[1721180922352,0.151696,65922.0,65916.0,0.00507466]
[1721180922460,0.00084,65928.0,65921.0,0.07717479]
[1721180922663,0.151692,65923.0,65922.0,0.0776]
[1721180922915,0.151692,65923.0,65922.0,0.08266086]
[1721180923121,0.303368,65927.0,65922.0,0.08266086]
[1721180923122,0.014,65925.0,65922.0,0.08266086]
[1721180923262,0.151686,65926.0,65923.0,0.0656]
[1721180923479,0.151687,65925.0,65923.0,0.07065856]
[1721180924101,0.303368,65927.0,65923.0,0.07065856]
[1721180924299,0.151689,65924.0,65923.0,0.07065856]
[1721180925127,0.014,65925.0,65923.0,0.07065856]
[1721180925528,0.303379,65924.0,65923.0,0.07065856]
[1721180926033,0.151689,65924.0,65923.0,0.07065856]
[1721180926229,0.455068,65924.0,65923.0,0.07065856]
[1721180926493,0.758447,65924.0,65923.0,0.07065856]
[1721180926971,0.786447,65924.0,65923.0,0.07065856]
[1721180927229,0.179689,65924.0,65923.0,0.07065856]
[1721180927440,0.179689,65924.0,65923.0,0.19662527]
[1721180927441,0.028,65924.0,65923.0,0.19662527]
[1721180927817,0.014,65924.0,65923.0,0.19662527]
[1721180928195,0.014,65924.0,65923.0,0.27631345]
[1721180928397,0.014,65924.0,65923.0,0.42800545]
[1721180928603,0.014,65924.0,65923.0,0.73138945]
[1721180928810,0.00084,65928.0,65927.0,0.151682]
[1721180929028,0.00084,65928.0,65927.0,1.30454863]
[1721180929234,0.00084,65928.0,65927.0,3.00316373]
[1721180929427,0.00084,65928.0,65927.0,2.81426551]
[1721180929644,0.00084,65928.0,65927.0,1.31123261]
[1721180929997,0.00084,65928.0,65927.0,1.87157072]
[1721180930207,0.00084,65928.0,65927.0,1.82156756]
[1721180930398,0.00084,65928.0,65927.0,1.61459761]
[1721180930614,0.01384,65928.0,65927.0,1.61459761]
[1721180931010,0.01284,65928.0,65927.0,1.61459761]
[1721180931257,0.01384,65928.0,65927.0,1.48864272]
[1721180931456,0.01384,65928.0,65927.0,0.70448084]
[1721180931855,0.01384,65928.0,65927.0,1.00784584]
[1721180932362,0.00184,65928.0,65927.0,0.3754171]
[1721180932680,0.00184,65928.0,65927.0,0.2754171]
[1721180932885,0.00184,65928.0,65927.0,0.3737461]
[1721180933066,0.00184,65928.0,65927.0,0.3877461]
[1721180933269,0.00084,65928.0,65927.0,0.2568]
[1721180933463,0.00084,65928.0,65927.0,0.1428]
[1721180933819,0.00184,65928.0,65927.0,0.1538]
[1721180934340,0.00184,65928.0,65927.0,0.0631]
[1721180934341,0.759242,65928.0,65927.0,0.0631]
[1721180934522,0.15252,65928.0,65927.0,0.0741]
[1721180935482,0.15352,65928.0,65927.0,0.0741]
[1721180937172,1.063603,65928.0,65927.0,0.011]
[1721180938564,1.062603,65928.0,65927.0,0.011]
[1721180938764,0.15252,65928.0,65927.0,0.011]
[1721180939130,0.151686,65926.0,65921.0,0.0797]
[1721180939285,0.151694,65923.0,65921.0,0.0797]
[1721180940025,0.30337,65926.0,65921.0,0.0797]
[1721180940225,0.303388,65922.0,65919.0,0.4596]
[1721180940445,0.455097,65920.0,65919.0,0.3965]
[1721180940625,0.151699,65920.0,65919.0,0.3965]
[1721180941129,0.455097,65920.0,65919.0,0.3965]
[1721180941507,0.151715,65913.0,65911.0,0.0601]
[1721180941710,0.002,65923.0,65911.0,0.0601]
[1721180941909,0.151711,65915.0,65911.0,0.0601]
[1721180943109,0.303415,65917.0,65914.0,0.07717479]
[1721180943110,0.151706,65917.0,65914.0,0.07717479]
[1721180943340,0.001,65915.0,65914.0,0.07717479]
[1721180943527,0.002,65915.0,65914.0,0.07717479]
[1721180943746,0.001,65915.0,65914.0,0.07717479]
[1721180943985,0.455078,65923.0,65914.0,0.07717479]
[1721180944190,0.151695,65922.0,65914.0,0.07717479]
[1721180944394,0.001,65915.0,65912.0,0.019207]
[1721180945151,0.002,65915.0,65912.0,0.019207]
[1721180945354,0.153711,65915.0,65912.0,0.019207]
[1721180945549,0.305423,65915.0,65912.0,0.019207]
[1721180945845,0.151715,65913.0,65912.0,0.009207]
[1721180946559,0.60952674,65913.0,65912.0,0.019207]
[1721180946783,1.21638674,65913.0,65912.0,0.019207]
[1721180946987,0.152715,65913.0,65912.0,0.009207]
[1721180947216,0.152715,65913.0,65912.0,0.016207]
[1721180947418,0.457145,65913.0,65912.0,0.02122504]
[1721180947635,0.760575,65913.0,65912.0,0.01422504]
[1721180947830,0.760575,65913.0,65912.0,0.009207]
[1721180948764,0.759575,65913.0,65912.0,0.009207]
[1721180948914,0.763575,65913.0,65912.0,0.010207]
[1721180949094,0.762575,65913.0,65912.0,0.009207]
[1721180949497,0.759575,65913.0,65912.0,0.015207]
[1721180950940,0.456145,65913.0,65912.0,0.015207]
[1721180952142,0.001,65913.0,65912.0,0.015207]
[1721180952545,0.456145,65913.0,65912.0,0.015207]
[1721180952726,0.001,65913.0,65912.0,0.091607]
[1721180952926,0.001,65913.0,65912.0,0.09667469]
[1721180953464,0.001,65913.0,65912.0,0.02027469]
[1721180953670,0.152715,65913.0,65912.0,0.02027469]
[1721180954010,0.759575,65913.0,65912.0,0.015207]
[1721180955127,1.21738674,65913.0,65912.0,0.015207]
[1721180959734,0.759575,65913.0,65912.0,0.015207]
[1721180960142,0.152715,65913.0,65912.0,0.015207]
[1721180960344,0.001,65913.0,65912.0,0.155807]
[1721180960508,0.001,65913.0,65912.0,0.16089194]
[1721180962165,0.001,65913.0,65912.0,0.02029194]
[1721180962363,0.759575,65913.0,65912.0,0.02029194]
[1721180962579,0.759575,65913.0,65912.0,0.015207]
[1721180964296,0.91395674,65913.0,65912.0,0.015207]
[1721180964495,1.21738674,65913.0,65912.0,0.015207]
[1721180966975,1.75991674,65913.0,65912.0,0.015207]
[1721180967172,1.3554869,65913.0,65912.0,0.015207]
[1721180967372,1.3649385,65913.0,65912.0,0.015207]
[1721180967985,1.3554869,65913.0,65912.0,0.015207]
[1721180968520,1.3654869,65913.0,65912.0,0.015207]
[1721180969087,1.3644869,65913.0,65912.0,0.009207]
[1721180969511,1.3704869,65913.0,65912.0,0.010207]
[1721180971133,0.07480016,65913.0,65912.0,0.073807]
[1721180971477,0.016,65913.0,65912.0,0.07889241]
[1721180972126,0.167715,65913.0,65912.0,0.07889241]
[1721180972562,0.016,65913.0,65912.0,0.07889241]
[1721180973701,0.016,65913.0,65912.0,0.58802519]
[1721180973930,0.016,65913.0,65912.0,0.99282515]
[1721180974156,0.016,65913.0,65912.0,1.42224324]
[1721180974350,0.016,65913.0,65912.0,1.72567724]
[1721180974990,0.006,65913.0,65912.0,1.82567724]
[1721180975190,0.006,65913.0,65912.0,1.69969315]
[1721180975392,0.006,65913.0,65912.0,1.82566788]
[1721180975575,0.00084,65928.0,65919.0,0.2]
[1721180975776,0.00084,65928.0,65921.0,0.147]
[1721180976114,0.00084,65928.0,65922.0,0.00504307]
[1721180976550,0.151692,65923.0,65922.0,0.00504307]
[1721180976677,0.151692,65923.0,65917.0,0.0656]
[1721180976678,0.455076,65923.0,65917.0,0.0656]
[1721180977020,0.165529,65925.0,65918.0,0.00505226]
[1721180977248,0.174529,65925.0,65921.0,0.001]
[1721180977362,0.174529,65925.0,65918.0,0.00505226]
[1721180977363,0.165529,65925.0,65918.0,0.00505226]
[1721180977595,0.165529,65925.0,65917.0,0.0656]
[1721180977840,0.165529,65925.0,65919.0,0.005031]
[1721180977980,0.152529,65925.0,65918.0,0.0050333]
[1721180978189,0.152529,65925.0,65917.0,0.0656]
[1721180978190,0.00084,65925.0,65920.0,0.0050287]
[1721180978415,0.01384,65925.0,65917.0,0.0656]
[1721180978818,0.01384,65925.0,65918.0,0.0050333]
[1721180979017,0.007,65923.0,65922.0,0.001]
[1721180979414,0.00084,65925.0,65917.0,0.0656]
[1721180979782,0.01384,65925.0,65918.0,0.0050333]
[1721180980132,0.02284,65925.0,65918.0,0.0050333]
[1721180980922,0.02284,65925.0,65921.0,0.07717479]
[1721180981178,0.02284,65925.0,65919.0,0.344731]
[1721180981179,0.00984,65925.0,65919.0,0.344731]
[1721180981499,0.02284,65925.0,65922.0,0.08219889]
[1721180981711,0.02284,65925.0,65923.0,0.238591]
[1721180982070,0.01384,65925.0,65923.0,0.24528062]
[1721180982237,0.00084,65925.0,65924.0,0.0758]
[1721180982439,0.02284,65925.0,65924.0,0.0758]
[1721180982635,0.02284,65925.0,65924.0,0.08248655]
[1721180982859,0.02284,65925.0,65924.0,0.56055455]
[1721180983070,0.02284,65925.0,65924.0,1.36056705]
[1721180983071,0.01184,65925.0,65924.0,1.36056705]
[1721180983276,0.00284,65925.0,65924.0,1.66394377]
[1721180983674,0.00484,65925.0,65924.0,1.66394377]
[1721180983897,0.00284,65925.0,65924.0,1.66394377]
[1721180984094,0.00284,65925.0,65924.0,1.96732277]
[1721180984291,0.00084,65928.0,65927.0,1.951377]
[1721180984506,0.00084,65928.0,65927.0,3.34055309]
[1721180984758,0.00084,65928.0,65927.0,4.74723045]
[1721180985231,0.00084,65928.0,65927.0,4.19386545]
[1721180985610,0.00084,65928.0,65927.0,5.69386545]
[1721180985809,0.00184,65928.0,65927.0,5.70786545]
[1721180986011,0.00184,65928.0,65927.0,5.90786545]
[1721180986367,0.00284,65928.0,65927.0,5.90986545]
[1721180986783,0.07914,65928.0,65927.0,1.04960671]
[1721180986966,0.457881,65928.0,65927.0,0.016]
[1721180987298,0.00284,65928.0,65927.0,0.016]
[1721180987755,0.00184,65928.0,65927.0,0.014]
[1721180988187,0.00484,65928.0,65927.0,0.014]
[1721180988389,0.00384,65928.0,65923.0,0.0061958]
[1721180988590,0.00084,65928.0,65927.0,0.002]
[1721180988730,0.455881,65928.0,65927.0,0.002]
[1721180988951,0.455881,65928.0,65923.0,0.0061958]
[1721180988952,0.151689,65924.0,65923.0,0.0061958]
[1721180990008,1.203726,65924.0,65923.0,0.0061958]
[1721180990852,1.203726,65924.0,65923.0,0.0071958]
[1721180991296,1.203726,65924.0,65923.0,0.0061958]
[1721180991744,1.204726,65924.0,65923.0,0.0131958]
[1721180992054,1.212726,65924.0,65923.0,0.0061958]
[1721180992403,1.208726,65924.0,65923.0,0.0061958]
[1721180992658,1.203726,65924.0,65923.0,0.0061958]
[1721180993072,1.211726,65924.0,65923.0,0.0071958]
[1721180993813,1.223726,65924.0,65923.0,0.0071958]
[1721180994271,1.68148674,65924.0,65923.0,0.0071958]
[1721180998006,2.09365299,65924.0,65923.0,0.0071958]
[1721180998616,2.13898653,65924.0,65923.0,0.0071958]
[1721180998810,2.09365299,65924.0,65923.0,0.0071958]
[1721180999222,2.29878905,65924.0,65923.0,0.0071958]
[1721181000059,2.36290411,65924.0,65923.0,0.0071958]
[1721181000972,2.35090411,65924.0,65923.0,0.0071958]
[1721181001370,2.35690411,65924.0,65923.0,0.0061958]
[1721181001585,2.35690411,65924.0,65923.0,0.0071958]
[1721181001803,2.41156914,65924.0,65923.0,0.0071958]
[1721181001988,2.34290411,65924.0,65923.0,0.0061958]
[1721181002326,2.28345299,65924.0,65923.0,0.0071958]
[1721181002501,2.35690374,65924.0,65923.0,0.0071958]
[1721181002735,2.29745299,65924.0,65923.0,0.0071958]
[1721181002937,2.35690378,65924.0,65923.0,0.0071958]
[1721181003506,2.41156586,65924.0,65923.0,0.0071958]
[1721181003668,2.37090378,65924.0,65923.0,0.0071958]
[1721181003868,2.37090379,65924.0,65923.0,0.0071958]
[1721181004118,2.32090379,65924.0,65923.0,0.0071958]
[1721181004323,2.37090379,65924.0,65923.0,0.0071958]
[1721181005589,2.37090413,65924.0,65923.0,0.0071958]
[1721181005782,2.48423174,65924.0,65923.0,0.0071958]
[1721181006554,2.37090413,65924.0,65923.0,0.0071958]
[1721181007068,2.37090413,65924.0,65912.0,0.009207]
[1721181007069,1.415435,65913.0,65912.0,0.009207]
[1721181007424,2.14913399,65913.0,65912.0,0.009207]
[1721181007770,2.09913399,65913.0,65912.0,0.009207]
[1721181008429,1.34689225,65913.0,65912.0,0.009207]
[1721181008677,0.014,65913.0,65912.0,0.009207]
[1721181008865,0.165715,65913.0,65912.0,0.009207]
[1721181010094,1.076005,65913.0,65912.0,0.009207]
[1721181010331,1.23038674,65913.0,65912.0,0.009207]
[1721181010558,1.076005,65913.0,65912.0,0.009207]
[1721181012011,1.23038674,65913.0,65912.0,0.009207]
[1721181012480,1.72091674,65913.0,65912.0,0.009207]
[1721181012660,1.77973959,65913.0,65912.0,0.009207]
[1721181013090,1.42630959,65913.0,65912.0,0.009207]
[1721181013504,1.36748674,65913.0,65912.0,0.009207]
[1721181013654,1.67091674,65913.0,65912.0,0.009207]
[1721181014285,1.72974216,65913.0,65912.0,0.009207]
[1721181014701,1.77974216,65913.0,65912.0,0.009207]
[1721181015333,1.72974216,65913.0,65912.0,0.009207]
[1721181015764,1.42631216,65913.0,65912.0,0.009207]
[1721181015987,1.42631216,65913.0,65886.0,0.46304871]
[1721181015988,0.1598,65869.0,65857.0,0.02505935]
[1721181016201,0.1379,65870.0,65857.0,0.02505935]
[1721181016202,0.615324,65858.0,65857.0,0.02505935]
[1721181016419,0.759207,65858.0,65857.0,0.009218]
[1721181016628,1.06289,65858.0,65857.0,0.009218]
[1721181017047,1.57561343,65858.0,65857.0,0.009218]
[1721181017244,1.57561343,65858.0,65839.0,0.06360097]
[1721181017245,1.366947,65840.0,65839.0,0.06360097]
[1721181017545,0.91379674,65840.0,65839.0,0.06360097]
[1721181018702,1.21756274,65840.0,65839.0,0.06360097]
[1721181019232,1.59446274,65840.0,65839.0,0.06360097]
[1721181019572,0.91379674,65840.0,65839.0,0.06360097]
[1721181019990,0.165883,65840.0,65839.0,0.06360097]
[1721181020233,0.455649,65840.0,65839.0,0.06360097]
[1721181020443,1.21756274,65840.0,65839.0,0.06360097]
[1721181020740,0.014,65840.0,65839.0,0.06360097]
[1721181021255,0.151882,65841.0,65839.0,0.06360097]
[1721181021423,0.01677097,65840.0,65839.0,0.06360097]
[1721181021625,0.028,65840.0,65839.0,0.06360097]
[1721181021992,0.014,65840.0,65839.0,0.06360097]
[1721181022188,0.783415,65840.0,65839.0,0.06360097]
[1721181022432,0.479649,65840.0,65839.0,0.06360097]
[1721181022631,0.469649,65840.0,65839.0,0.06360097]
[1721181022876,0.021,65840.0,65839.0,0.05860097]
[1721181023098,0.158883,65840.0,65839.0,0.05860097]
[1721181023288,0.469649,65840.0,65839.0,0.05860097]
[1721181023505,0.028,65840.0,65839.0,0.05860097]
[1721181023864,0.469649,65840.0,65839.0,0.05860097]
[1721181024277,0.483649,65840.0,65839.0,0.05860097]
[1721181024818,0.91379674,65840.0,65839.0,0.05860097]
[1721181025073,1.21756274,65840.0,65839.0,0.05860097]
[1721181025319,0.315766,65840.0,65839.0,0.05860097]
[1721181025598,0.771415,65840.0,65839.0,0.05860097]
[1721181025841,0.92579674,65840.0,65839.0,0.05860097]
[1721181026075,1.24156274,65840.0,65839.0,0.05860097]
[1721181026284,1.22956274,65840.0,65839.0,0.05860097]
[1721181026488,1.23856274,65840.0,65839.0,0.05860097]
[1721181026722,1.22656274,65840.0,65839.0,0.05860097]
[1721181026934,1.24056274,65840.0,65839.0,0.05860097]
[1721181027281,1.22656274,65840.0,65839.0,0.05860097]
[1721181027805,1.24056274,65840.0,65839.0,0.05860097]
[1721181028248,1.70412874,65840.0,65839.0,0.05860097]
[1721181028450,1.71412874,65840.0,65839.0,0.05860097]
[1721181028654,1.68112874,65840.0,65839.0,0.05860097]
[1721181029139,1.68912874,65840.0,65839.0,0.05860097]
[1721181029478,1.93241048,65840.0,65839.0,0.05860097]
[1721181029672,1.83112874,65840.0,65839.0,0.05860097]
[1721181030157,1.80312874,65840.0,65839.0,0.05860097]
[1721181030478,1.79012874,65840.0,65839.0,0.05860097]
[1721181030723,1.84012874,65840.0,65839.0,0.05860097]
[1721181030976,1.85412874,65840.0,65839.0,0.05860097]
[1721181031438,1.79512874,65840.0,65839.0,0.05860097]
[1721181031653,1.84512874,65840.0,65839.0,0.05860097]
[1721181031861,1.85912874,65840.0,65839.0,0.05860097]
[1721181032097,1.84512874,65840.0,65839.0,0.05860097]
[1721181032534,1.85912874,65840.0,65839.0,0.05860097]
[1721181034821,1.80912874,65840.0,65839.0,0.05860097]
[1721181035194,1.85912874,65840.0,65839.0,0.05860097]
[1721181036684,1.80912874,65840.0,65839.0,0.05860097]
[1721181036938,1.85912874,65840.0,65839.0,0.05860097]
[1721181037082,1.80912874,65840.0,65839.0,0.05860097]
[1721181037395,1.85912874,65840.0,65839.0,0.05860097]
[1721181037784,1.80912874,65840.0,65839.0,0.05860097]
[1721181037982,1.50536274,65840.0,65839.0,0.05860097]